[Event "Titled Tuesday Blitz October 11 Early 2022"]
[White "Silva, Pedro Gil Ferreira Da"]
[Black "Martin Carmona, Gaston Manuel"]
[WhiteFideId "1946102"]
[BlackFideId "22284567"]
[WhiteElo "2170"]
[BlackElo "2235"]
[Result "1/2-1/2"]
[Round "11"]
[TimeControl "180+1"]
[Date "2022.10.12"]
[WhiteClock "0:00:19"]
[BlackClock "0:00:02"]

1. e4 {[%clk 0:03:00]}  e5 {[%clk 0:02:56]} 2. Nf3 {[%clk 0:03:00]}  Nc6 {[%clk 0:02:56]} 3. Nc3 {[%clk 0:02:58]}  Nf6 {[%clk 0:02:56]} 4. Bb5 {[%clk 0:02:57]}  Nd4 {[%clk 0:02:55]} 5. Bc4 {[%clk 0:02:56]}  Bc5 {[%clk 0:02:52]} 6. d3 {[%clk 0:02:56]}  d6 {[%clk 0:02:41]} 7. Nxd4 {[%clk 0:02:55]}  Bxd4 {[%clk 0:02:33]} 8. Ne2 {[%clk 0:02:53]}  Bb6 {[%clk 0:02:34]} 9. Ng3 {[%clk 0:02:53]}  c6 {[%clk 0:02:34]} 10. c3 {[%clk 0:02:51]}  O-O {[%clk 0:02:32]} 11. Bb3 {[%clk 0:02:50]}  d5 {[%clk 0:02:32]} 12. Bg5 {[%clk 0:02:49]}  h6 {[%clk 0:02:31]} 13. Bxf6 {[%clk 0:02:44]}  Qxf6 {[%clk 0:02:32]} 14. O-O {[%clk 0:02:44]}  dxe4 {[%clk 0:02:26]} 15. Nxe4 {[%clk 0:02:42]}  Qg6 {[%clk 0:02:25]} 16. Qf3 {[%clk 0:02:37]}  Bg4 {[%clk 0:02:20]} 17. Qg3 {[%clk 0:02:34]}  Rad8 {[%clk 0:02:20]} 18. Rae1 {[%clk 0:02:13]}  Bf5 {[%clk 0:02:15]} 19. Qxe5 {[%clk 0:02:08]}  Rxd3 {[%clk 0:02:10]} 20. Ng3 {[%clk 0:02:03]}  Rxg3 {[%clk 0:01:42]} 21. hxg3 {[%clk 0:02:01]}  Bd3 {[%clk 0:01:36]} 22. Qe7 {[%clk 0:01:53]}  Bxf1 {[%clk 0:01:35]} 23. Rxf1 {[%clk 0:01:54]}  Qxg3 {[%clk 0:01:33]} 24. Qxb7 {[%clk 0:01:51]}  Qg6 {[%clk 0:01:28]} 25. a4 {[%clk 0:01:41]}  h5 {[%clk 0:01:16]} 26. a5 {[%clk 0:01:37]}  Bc5 {[%clk 0:01:16]} 27. Ba4 {[%clk 0:01:33]}  h4 {[%clk 0:01:16]} 28. Qxc6 {[%clk 0:01:31]}  Qg5 {[%clk 0:01:16]} 29. Qf3 {[%clk 0:01:30]}  Bd6 {[%clk 0:01:13]} 30. b4 {[%clk 0:01:10]}  Qe5 {[%clk 0:01:12]} 31. g3 {[%clk 0:01:08]}  hxg3 {[%clk 0:01:11]} 32. fxg3 {[%clk 0:01:09]}  Qxg3+ {[%clk 0:00:58]} 33. Qxg3 {[%clk 0:01:09]}  Bxg3 {[%clk 0:00:59]} 34. Rd1 {[%clk 0:01:05]}  Be5 {[%clk 0:00:57]} 35. Rd3 {[%clk 0:01:01]}  Rc8 {[%clk 0:00:56]} 36. Rd7 {[%clk 0:00:57]}  Bxc3 {[%clk 0:00:43]} 37. Bb3 {[%clk 0:00:57]}  Bxb4 {[%clk 0:00:38]} 38. Rxf7 {[%clk 0:00:52]}  Kh7 {[%clk 0:00:38]} 39. a6 {[%clk 0:00:50]}  Rc3 {[%clk 0:00:34]} 40. Bd5 {[%clk 0:00:46]}  Bc5+ {[%clk 0:00:34]} 41. Kg2 {[%clk 0:00:45]}  Bb6 {[%clk 0:00:34]} 42. Rf3 {[%clk 0:00:39]}  Rc2+ {[%clk 0:00:32]} 43. Kh3 {[%clk 0:00:38]}  Rc5 {[%clk 0:00:33]} 44. Bb7 {[%clk 0:00:38]}  Kh6 {[%clk 0:00:32]} 45. Rd3 {[%clk 0:00:37]}  Ra5 {[%clk 0:00:27]} 46. Rd6+ {[%clk 0:00:35]}  Kh7 {[%clk 0:00:27]} 47. Be4+ {[%clk 0:00:34]}  Kg8 {[%clk 0:00:24]} 48. Bd5+ {[%clk 0:00:34]}  Kf8 {[%clk 0:00:22]} 49. Bb7 {[%clk 0:00:34]}  Ke7 {[%clk 0:00:21]} 50. Rd3 {[%clk 0:00:35]}  g5 {[%clk 0:00:20]} 51. Kg4 {[%clk 0:00:34]}  Kf6 {[%clk 0:00:19]} 52. Rd6+ {[%clk 0:00:34]}  Ke5 {[%clk 0:00:19]} 53. Rd1 {[%clk 0:00:23]}  Kf6 {[%clk 0:00:17]} 54. Rd6+ {[%clk 0:00:21]}  Ke5 {[%clk 0:00:17]} 55. Rd1 {[%clk 0:00:21]}  Be3 {[%clk 0:00:18]} 56. Re1 {[%clk 0:00:21]}  Kd4 {[%clk 0:00:18]} 57. Rd1+ {[%clk 0:00:21]}  Kc3 {[%clk 0:00:18]} 58. Rd5 {[%clk 0:00:20]}  Ra4+ {[%clk 0:00:17]} 59. Kf3 {[%clk 0:00:21]}  Bd2 {[%clk 0:00:15]} 60. Rc5+ {[%clk 0:00:20]}  Kb2 {[%clk 0:00:15]} 61. Rd5 {[%clk 0:00:20]}  Kc2 {[%clk 0:00:14]} 62. Rc5+ {[%clk 0:00:20]}  Kd1 {[%clk 0:00:14]} 63. Rd5 {[%clk 0:00:21]}  Rf4+ {[%clk 0:00:15]} 64. Kg3 {[%clk 0:00:21]}  Rf1 {[%clk 0:00:14]} 65. Rd7 {[%clk 0:00:22]}  Rg1+ {[%clk 0:00:14]} 66. Kf3 {[%clk 0:00:21]}  g4+ {[%clk 0:00:14]} 67. Ke4 {[%clk 0:00:21]}  Re1+ {[%clk 0:00:13]} 68. Kd3 {[%clk 0:00:21]}  Re3+ {[%clk 0:00:11]} 69. Kc4 {[%clk 0:00:21]}  Rc3+ {[%clk 0:00:11]} 70. Kb5 {[%clk 0:00:20]}  g3 {[%clk 0:00:12]} 71. Bf3+ {[%clk 0:00:20]}  Ke1 {[%clk 0:00:11]} 72. Rxa7 {[%clk 0:00:20]}  Rxf3 {[%clk 0:00:11]} 73. Re7+ {[%clk 0:00:20]}  Be3 {[%clk 0:00:11]} 74. a7 {[%clk 0:00:19]}  Rf5+ {[%clk 0:00:04]} 75. Kc6 {[%clk 0:00:19]}  Ra5 {[%clk 0:00:03]} 76. Rxe3+ {[%clk 0:00:18]}  Kf2 {[%clk 0:00:04]} 77. Re7 {[%clk 0:00:18]}  g2 {[%clk 0:00:03]} 78. Rg7 {[%clk 0:00:18]}  Ra3 {[%clk 0:00:02]} 79. Rxg2+ {[%clk 0:00:18]}  Kxg2 {[%clk 0:00:02]} 80. Kb7 {[%clk 0:00:19]}  Rxa7+ {[%clk 0:00:02]} 81. Kxa7 {[%clk 0:00:19]} 1/2-1/2


[Site "https://www.chess.com"]

[Event "Titled Tuesday Blitz October 11 Early 2022"]
[White "Skliarov, Viktor"]
[Black "Salman, Pavel"]
[WhiteFideId "14106736"]
[BlackFideId "24153753"]
[WhiteElo "2284"]
[BlackElo "2187"]
[Result "0-1"]
[Round "11"]
[TimeControl "180+1"]
[Date "2022.10.12"]
[WhiteClock "0:00:14"]
[BlackClock "0:00:08"]

1. e4 {[%clk 0:03:00]}  c5 {[%clk 0:02:59]} 2. Nf3 {[%clk 0:03:00]}  e6 {[%clk 0:02:59]} 3. c3 {[%clk 0:03:00]}  Nf6 {[%clk 0:02:59]} 4. Bd3 {[%clk 0:02:59]}  Nc6 {[%clk 0:02:55]} 5. Bc2 {[%clk 0:02:59]}  d5 {[%clk 0:02:52]} 6. e5 {[%clk 0:02:59]}  Nd7 {[%clk 0:02:52]} 7. d4 {[%clk 0:02:59]}  Qb6 {[%clk 0:02:53]} 8. O-O {[%clk 0:02:56]}  Be7 {[%clk 0:02:48]} 9. a3 {[%clk 0:02:56]}  a5 {[%clk 0:02:43]} 10. Qd3 {[%clk 0:02:47]}  Nf8 {[%clk 0:02:35]} 11. Rd1 {[%clk 0:02:46]}  Ng6 {[%clk 0:02:24]} 12. Nbd2 {[%clk 0:02:44]}  c4 {[%clk 0:02:08]} 13. Qe3 {[%clk 0:02:39]}  a4 {[%clk 0:02:07]} 14. Nf1 {[%clk 0:02:35]}  Bd7 {[%clk 0:02:06]} 15. Ng5 {[%clk 0:02:26]}  Na5 {[%clk 0:01:55]} 16. Rb1 {[%clk 0:02:15]}  Nb3 {[%clk 0:01:44]} 17. Qg3 {[%clk 0:02:11]}  Nxc1 {[%clk 0:01:31]} 18. Rdxc1 {[%clk 0:02:11]}  Bxg5 {[%clk 0:01:22]} 19. Qxg5 {[%clk 0:02:09]}  Qd8 {[%clk 0:01:23]} 20. Qe3 {[%clk 0:02:04]}  Qh4 {[%clk 0:01:17]} 21. g3 {[%clk 0:02:02]}  Qh3 {[%clk 0:01:15]} 22. Bd1 {[%clk 0:01:53]}  h5 {[%clk 0:01:12]} 23. Bf3 {[%clk 0:01:53]}  Qf5 {[%clk 0:00:52]} 24. h4 {[%clk 0:01:46]}  Ne7 {[%clk 0:00:47]} 25. Qe2 {[%clk 0:01:40]}  O-O-O {[%clk 0:00:43]} 26. Ne3 {[%clk 0:01:39]}  Qh7 {[%clk 0:00:43]} 27. Nxc4 {[%clk 0:01:32]}  dxc4 {[%clk 0:00:39]} 28. Qxc4+ {[%clk 0:01:32]}  Bc6 {[%clk 0:00:38]} 29. b3 {[%clk 0:01:29]}  Kd7 {[%clk 0:00:25]} 30. Bxc6+ {[%clk 0:01:26]}  bxc6 {[%clk 0:00:26]} 31. Qxa4 {[%clk 0:01:22]}  Ra8 {[%clk 0:00:25]} 32. Qb4 {[%clk 0:01:21]}  Rhb8 {[%clk 0:00:22]} 33. Qd6+ {[%clk 0:01:18]}  Ke8 {[%clk 0:00:23]} 34. Re1 {[%clk 0:01:16]}  Qd3 {[%clk 0:00:19]} 35. Qc5 {[%clk 0:01:07]}  Rb5 {[%clk 0:00:13]} 36. Qc4 {[%clk 0:00:44]}  Qxc4 {[%clk 0:00:13]} 37. bxc4 {[%clk 0:00:45]}  Rxb1 {[%clk 0:00:14]} 38. Rxb1 {[%clk 0:00:43]}  Rxa3 {[%clk 0:00:15]} 39. Rc1 {[%clk 0:00:40]}  c5 {[%clk 0:00:13]} 40. Kf1 {[%clk 0:00:39]}  Kd7 {[%clk 0:00:13]} 41. Ke2 {[%clk 0:00:39]}  Nf5 {[%clk 0:00:13]} 42. d5 {[%clk 0:00:36]}  Ra4 {[%clk 0:00:09]} 43. Kd3 {[%clk 0:00:34]}  f6 {[%clk 0:00:08]} 44. exf6 {[%clk 0:00:29]}  gxf6 {[%clk 0:00:08]} 45. dxe6+ {[%clk 0:00:29]}  Kxe6 {[%clk 0:00:09]} 46. Re1+ {[%clk 0:00:30]}  Kd6 {[%clk 0:00:09]} 47. Re8 {[%clk 0:00:29]}  Ra2 {[%clk 0:00:09]} 48. Rd8+ {[%clk 0:00:22]}  Ke6 {[%clk 0:00:09]} 49. Rc8 {[%clk 0:00:21]}  Rxf2 {[%clk 0:00:08]} 50. Rxc5 {[%clk 0:00:21]}  Rf3+ {[%clk 0:00:08]} 51. Ke4 {[%clk 0:00:20]}  Rf1 {[%clk 0:00:08]} 52. Rc6+ {[%clk 0:00:20]}  Nd6+ {[%clk 0:00:07]} 53. Ke3 {[%clk 0:00:21]}  Kd7 {[%clk 0:00:07]} 54. Rc5 {[%clk 0:00:21]}  f5 {[%clk 0:00:07]} 55. Rd5 {[%clk 0:00:20]}  Ke6 {[%clk 0:00:06]} 56. Rc5 {[%clk 0:00:18]}  Rc1 {[%clk 0:00:07]} 57. Kd3 {[%clk 0:00:15]}  Rg1 {[%clk 0:00:07]} 58. Rc7 {[%clk 0:00:14]}  Rxg3+ {[%clk 0:00:07]} 59. Kd4 {[%clk 0:00:15]}  Rg4+ {[%clk 0:00:08]} 60. Kc5 {[%clk 0:00:14]}  Rxc4+ {[%clk 0:00:07]} 61. Kb6 {[%clk 0:00:14]}  Rxc7 {[%clk 0:00:08]} 62. Kxc7 {[%clk 0:00:14]}  Nb5+ {[%clk 0:00:08]} 0-1


[Site "https://www.chess.com"]

[Event "Titled Tuesday Blitz October 11 Early 2022"]
[White "Smietanska, Wiktoria"]
[Black "Alexikov, Alexander"]
[WhiteFideId "21869359"]
[BlackFideId "14103958"]
[WhiteElo "1854"]
[BlackElo "2222"]
[Result "1-0"]
[Round "11"]
[TimeControl "180+1"]
[Date "2022.10.12"]
[WhiteClock "0:00:03"]
[BlackClock "0:00:02"]

1. c4 {[%clk 0:03:00]}  Nf6 {[%clk 0:02:59]} 2. Nc3 {[%clk 0:02:57]}  g6 {[%clk 0:03:00]} 3. g3 {[%clk 0:02:57]}  Bg7 {[%clk 0:03:00]} 4. Bg2 {[%clk 0:02:57]}  d6 {[%clk 0:03:01]} 5. e4 {[%clk 0:02:58]}  O-O {[%clk 0:03:00]} 6. Nge2 {[%clk 0:02:58]}  c6 {[%clk 0:03:00]} 7. O-O {[%clk 0:02:58]}  e5 {[%clk 0:03:00]} 8. d3 {[%clk 0:02:59]}  a6 {[%clk 0:02:56]} 9. h3 {[%clk 0:02:59]}  b5 {[%clk 0:02:55]} 10. b3 {[%clk 0:02:59]}  b4 {[%clk 0:02:52]} 11. Na4 {[%clk 0:02:59]}  c5 {[%clk 0:02:52]} 12. f4 {[%clk 0:02:56]}  exf4 {[%clk 0:02:47]} 13. Bxf4 {[%clk 0:02:46]}  Ra7 {[%clk 0:02:45]} 14. Rc1 {[%clk 0:02:38]}  Nc6 {[%clk 0:02:44]} 15. Qd2 {[%clk 0:02:26]}  Nh5 {[%clk 0:02:00]} 16. Be3 {[%clk 0:02:14]}  Be5 {[%clk 0:01:52]} 17. g4 {[%clk 0:01:54]}  Ng3 {[%clk 0:01:49]} 18. Nxg3 {[%clk 0:01:49]}  Bxg3 {[%clk 0:01:48]} 19. Bh6 {[%clk 0:01:46]}  Re8 {[%clk 0:01:47]} 20. Bg5 {[%clk 0:01:45]}  Qd7 {[%clk 0:01:39]} 21. Nb6 {[%clk 0:01:39]}  Qe6 {[%clk 0:01:37]} 22. Nxc8 {[%clk 0:01:38]}  Qxc8 {[%clk 0:01:32]} 23. Bf6 {[%clk 0:01:27]}  Be5 {[%clk 0:01:31]} 24. g5 {[%clk 0:01:27]}  Re6 {[%clk 0:01:15]} 25. h4 {[%clk 0:01:17]}  Bxf6 {[%clk 0:01:06]} 26. gxf6 {[%clk 0:01:17]}  Qd8 {[%clk 0:01:06]} 27. Qg5 {[%clk 0:01:12]}  Nd4 {[%clk 0:00:57]} 28. Rf2 {[%clk 0:01:08]}  Qf8 {[%clk 0:00:52]} 29. Bh3 {[%clk 0:01:05]}  Re5 {[%clk 0:00:49]} 30. Qg4 {[%clk 0:00:58]}  a5 {[%clk 0:00:48]} 31. Rcf1 {[%clk 0:00:55]}  a4 {[%clk 0:00:41]} 32. bxa4 {[%clk 0:00:54]}  Ra5 {[%clk 0:00:39]} 33. Rg2 {[%clk 0:00:36]}  Rxa4 {[%clk 0:00:38]} 34. h5 {[%clk 0:00:34]}  Ra3 {[%clk 0:00:36]} 35. hxg6 {[%clk 0:00:33]}  hxg6 {[%clk 0:00:35]} 36. Rd2 {[%clk 0:00:28]}  Qh6 {[%clk 0:00:31]} 37. Qc8+ {[%clk 0:00:18]}  Kh7 {[%clk 0:00:27]} 38. Rh2 {[%clk 0:00:16]}  Rh5 {[%clk 0:00:24]} 39. Qd7 {[%clk 0:00:11]}  Kg8 {[%clk 0:00:17]} 40. Qe8+ {[%clk 0:00:11]}  Qf8 {[%clk 0:00:16]} 41. Qxf8+ {[%clk 0:00:08]}  Kxf8 {[%clk 0:00:16]} 42. Rd1 {[%clk 0:00:02]}  Nf3+ {[%clk 0:00:08]} 43. Kg2 {[%clk 0:00:02]}  Nxh2 {[%clk 0:00:08]} 44. Kxh2 {[%clk 0:00:03]}  Rxa2+ {[%clk 0:00:08]} 45. Kg3 {[%clk 0:00:03]}  Ra3 {[%clk 0:00:05]} 46. Bg4 {[%clk 0:00:02]}  Rh7 {[%clk 0:00:04]} 47. Kf4 {[%clk 0:00:02]}  Rh2 {[%clk 0:00:03]} 48. Rb1 {[%clk 0:00:02]}  Kg8 {[%clk 0:00:02]} 49. e5 {[%clk 0:00:03]} 1-0


[Site "https://www.chess.com"]

[Event "Titled Tuesday Blitz October 11 Early 2022"]
[White "Srihari L R"]
[Black "Drozdowski, Kacper"]
[WhiteFideId "46617116"]
[BlackFideId "1136720"]
[WhiteElo "2336"]
[BlackElo "2485"]
[Result "1-0"]
[Round "11"]
[TimeControl "180+1"]
[Date "2022.10.11"]
[WhiteClock "0:00:06"]
[BlackClock "0:00:11"]

1. c4 {[%clk 0:02:57]}  e5 {[%clk 0:02:59]} 2. Nc3 {[%clk 0:02:58]}  Nf6 {[%clk 0:03:00]} 3. Nf3 {[%clk 0:02:57]}  Nc6 {[%clk 0:03:00]} 4. d3 {[%clk 0:02:56]}  Bb4 {[%clk 0:03:00]} 5. Bd2 {[%clk 0:02:56]}  O-O {[%clk 0:03:00]} 6. e3 {[%clk 0:02:52]}  Re8 {[%clk 0:02:58]} 7. Be2 {[%clk 0:02:50]}  Bxc3 {[%clk 0:02:56]} 8. Bxc3 {[%clk 0:02:50]}  d5 {[%clk 0:02:57]} 9. cxd5 {[%clk 0:02:49]}  Nxd5 {[%clk 0:02:58]} 10. Bd2 {[%clk 0:02:49]}  Bg4 {[%clk 0:02:57]} 11. a3 {[%clk 0:02:49]}  Qd6 {[%clk 0:02:55]} 12. Qc2 {[%clk 0:02:42]}  Rad8 {[%clk 0:02:54]} 13. Rc1 {[%clk 0:02:42]}  Nb6 {[%clk 0:02:53]} 14. Qc5 {[%clk 0:02:39]}  Bf5 {[%clk 0:02:39]} 15. Qxd6 {[%clk 0:01:54]}  Rxd6 {[%clk 0:02:38]} 16. e4 {[%clk 0:01:53]}  Bg4 {[%clk 0:02:36]} 17. Be3 {[%clk 0:01:52]}  Bxf3 {[%clk 0:02:27]} 18. gxf3 {[%clk 0:01:52]}  Rf6 {[%clk 0:01:57]} 19. b4 {[%clk 0:01:47]}  a6 {[%clk 0:01:56]} 20. Rg1 {[%clk 0:01:38]}  h6 {[%clk 0:01:55]} 21. Rg4 {[%clk 0:01:37]}  Nd7 {[%clk 0:01:45]} 22. f4 {[%clk 0:01:33]}  exf4 {[%clk 0:01:41]} 23. Rxf4 {[%clk 0:01:32]}  Rd6 {[%clk 0:01:35]} 24. Rc3 {[%clk 0:01:00]}  Nde5 {[%clk 0:01:34]} 25. Bc5 {[%clk 0:00:47]}  Rd7 {[%clk 0:01:30]} 26. Rh4 {[%clk 0:00:46]}  Nd4 {[%clk 0:01:22]} 27. Bxd4 {[%clk 0:00:39]}  Rxd4 {[%clk 0:01:23]} 28. f4 {[%clk 0:00:36]}  Ng6 {[%clk 0:01:19]} 29. Rg4 {[%clk 0:00:32]}  h5 {[%clk 0:01:17]} 30. Rg3 {[%clk 0:00:32]}  Nxf4 {[%clk 0:01:15]} 31. Rxc7 {[%clk 0:00:32]}  b5 {[%clk 0:01:07]} 32. h4 {[%clk 0:00:32]}  Rd6 {[%clk 0:00:52]} 33. Rc5 {[%clk 0:00:21]}  g6 {[%clk 0:00:48]} 34. Rf5 {[%clk 0:00:19]}  Ne6 {[%clk 0:00:43]} 35. Rxh5 {[%clk 0:00:19]}  Rc8 {[%clk 0:00:43]} 36. Kd2 {[%clk 0:00:18]}  Rdc6 {[%clk 0:00:43]} 37. Bd1 {[%clk 0:00:17]}  Rc1 {[%clk 0:00:42]} 38. Rd5 {[%clk 0:00:16]}  Ra1 {[%clk 0:00:38]} 39. h5 {[%clk 0:00:16]}  Nf4 {[%clk 0:00:34]} 40. Rf5 {[%clk 0:00:16]}  Ra2+ {[%clk 0:00:22]} 41. Ke3 {[%clk 0:00:13]}  Ng2+ {[%clk 0:00:22]} 42. Kd4 {[%clk 0:00:13]}  Rd8+ {[%clk 0:00:20]} 43. Rd5 {[%clk 0:00:13]}  Rxd5+ {[%clk 0:00:18]} 44. exd5 {[%clk 0:00:14]}  Nf4 {[%clk 0:00:17]} 45. hxg6 {[%clk 0:00:13]}  fxg6 {[%clk 0:00:15]} 46. Ke5 {[%clk 0:00:10]}  Rf2 {[%clk 0:00:12]} 47. d6 {[%clk 0:00:09]}  Kf8 {[%clk 0:00:12]} 48. d4 {[%clk 0:00:06]}  Ke8 {[%clk 0:00:12]} 49. Bf3 {[%clk 0:00:06]}  Nd3+ {[%clk 0:00:10]} 50. Ke4 {[%clk 0:00:06]}  Rd2 {[%clk 0:00:09]} 51. Ke3 {[%clk 0:00:06]}  Ra2 {[%clk 0:00:07]} 52. Kxd3 {[%clk 0:00:06]}  Rxa3+ {[%clk 0:00:08]} 53. Ke4 {[%clk 0:00:06]}  Kd7 {[%clk 0:00:08]} 54. Rxg6 {[%clk 0:00:06]}  Ra1 {[%clk 0:00:09]} 55. Bg4+ {[%clk 0:00:07]}  Kc6 {[%clk 0:00:09]} 56. d7+ {[%clk 0:00:07]}  Kc7 {[%clk 0:00:10]} 57. Rc6+ {[%clk 0:00:07]}  Kxc6 {[%clk 0:00:10]} 58. d8=Q {[%clk 0:00:07]}  Re1+ {[%clk 0:00:11]} 59. Kd3 {[%clk 0:00:07]}  Rd1+ {[%clk 0:00:11]} 60. Bxd1 {[%clk 0:00:06]} 1-0


[Site "https://www.chess.com"]

[Event "Titled Tuesday Blitz October 11 Early 2022"]
[White "Tarasova, Viktoriya"]
[Black "Slaby, Jerzy"]
[WhiteFideId "4175840"]
[BlackFideId "1121405"]
[WhiteElo "2182"]
[BlackElo "2537"]
[Result "0-1"]
[Round "11"]
[TimeControl "180+1"]
[Date "2022.10.12"]
[WhiteClock "0:00:01"]
[BlackClock "0:00:51"]

1. d4 {[%clk 0:03:00]}  Nf6 {[%clk 0:02:55]} 2. c4 {[%clk 0:03:01]}  c6 {[%clk 0:02:55]} 3. Nf3 {[%clk 0:03:00]}  d5 {[%clk 0:02:55]} 4. Nc3 {[%clk 0:03:01]}  a6 {[%clk 0:02:54]} 5. e3 {[%clk 0:03:00]}  g6 {[%clk 0:02:51]} 6. Be2 {[%clk 0:03:00]}  Bg7 {[%clk 0:02:51]} 7. O-O {[%clk 0:02:59]}  O-O {[%clk 0:02:51]} 8. b3 {[%clk 0:02:59]}  Bf5 {[%clk 0:02:47]} 9. Bb2 {[%clk 0:02:58]}  Ne4 {[%clk 0:02:47]} 10. Nxe4 {[%clk 0:02:53]}  Bxe4 {[%clk 0:02:48]} 11. Rc1 {[%clk 0:02:53]}  Nd7 {[%clk 0:02:47]} 12. Qd2 {[%clk 0:02:50]}  e6 {[%clk 0:02:41]} 13. Rfd1 {[%clk 0:02:41]}  Bxf3 {[%clk 0:02:38]} 14. Bxf3 {[%clk 0:02:41]}  f5 {[%clk 0:02:39]} 15. g3 {[%clk 0:02:29]}  g5 {[%clk 0:02:34]} 16. Bg2 {[%clk 0:02:29]}  g4 {[%clk 0:02:32]} 17. b4 {[%clk 0:02:07]}  Nf6 {[%clk 0:02:29]} 18. a4 {[%clk 0:02:05]}  Ne4 {[%clk 0:02:24]} 19. Qd3 {[%clk 0:02:05]}  h5 {[%clk 0:02:11]} 20. b5 {[%clk 0:02:01]}  axb5 {[%clk 0:02:10]} 21. axb5 {[%clk 0:02:00]}  Rf7 {[%clk 0:02:05]} 22. bxc6 {[%clk 0:01:54]}  bxc6 {[%clk 0:02:06]} 23. cxd5 {[%clk 0:01:54]}  cxd5 {[%clk 0:02:06]} 24. Rc6 {[%clk 0:01:55]}  Qf6 {[%clk 0:02:00]} 25. Rdc1 {[%clk 0:01:51]}  h4 {[%clk 0:01:58]} 26. Rc8+ {[%clk 0:01:48]}  Rxc8 {[%clk 0:01:57]} 27. Rxc8+ {[%clk 0:01:48]}  Kh7 {[%clk 0:01:58]} 28. Qc2 {[%clk 0:01:39]}  h3 {[%clk 0:01:56]} 29. Bxe4 {[%clk 0:01:34]}  fxe4 {[%clk 0:01:55]} 30. Qe2 {[%clk 0:01:33]}  Qf5 {[%clk 0:01:50]} 31. Bc3 {[%clk 0:01:12]}  Rb7 {[%clk 0:01:47]} 32. Be1 {[%clk 0:01:04]}  Rb1 {[%clk 0:01:46]} 33. Kf1 {[%clk 0:00:59]}  Kg6 {[%clk 0:01:31]} 34. Rc6 {[%clk 0:00:38]}  Bf6 {[%clk 0:01:29]} 35. Rc8 {[%clk 0:00:35]}  e5 {[%clk 0:01:18]} 36. Rg8+ {[%clk 0:00:33]}  Kh7 {[%clk 0:01:17]} 37. Rxg4 {[%clk 0:00:23]}  exd4 {[%clk 0:01:15]} 38. exd4 {[%clk 0:00:23]}  Bg5 {[%clk 0:01:07]} 39. Rxg5 {[%clk 0:00:04]}  Qxg5 {[%clk 0:01:06]} 40. Qc2 {[%clk 0:00:04]}  Qc1 {[%clk 0:01:05]} 41. Qe2 {[%clk 0:00:02]}  Qd1 {[%clk 0:00:54]} 42. Qe3 {[%clk 0:00:01]}  Qd3+ {[%clk 0:00:51]} 0-1


[Site "https://www.chess.com"]

[Event "Titled Tuesday Blitz October 11 Early 2022"]
[White "Terry, Renato"]
[Black "Duda, Jan-Krzysztof"]
[WhiteFideId "3803457"]
[BlackFideId "1170546"]
[WhiteElo "2577"]
[BlackElo "2779"]
[Result "0-1"]
[Round "11"]
[TimeControl "180+1"]
[Date "2022.10.11"]
[WhiteClock "0:00:09"]
[BlackClock "0:00:51"]

1. d4 {[%clk 0:03:00]}  Nf6 {[%clk 0:02:59]} 2. Nf3 {[%clk 0:03:01]}  d5 {[%clk 0:02:58]} 3. c4 {[%clk 0:03:00]}  e6 {[%clk 0:02:59]} 4. e3 {[%clk 0:03:00]}  a6 {[%clk 0:02:56]} 5. b3 {[%clk 0:03:01]}  b6 {[%clk 0:02:56]} 6. Bd3 {[%clk 0:03:01]}  Bb7 {[%clk 0:02:56]} 7. O-O {[%clk 0:03:01]}  Nbd7 {[%clk 0:02:55]} 8. Bb2 {[%clk 0:03:02]}  Bd6 {[%clk 0:02:55]} 9. Nbd2 {[%clk 0:03:01]}  Ne4 {[%clk 0:02:52]} 10. Rc1 {[%clk 0:02:56]}  O-O {[%clk 0:02:49]} 11. Qc2 {[%clk 0:02:56]}  f5 {[%clk 0:02:49]} 12. Ne5 {[%clk 0:02:43]}  Bxe5 {[%clk 0:02:27]} 13. dxe5 {[%clk 0:02:42]}  Ndc5 {[%clk 0:02:24]} 14. Be2 {[%clk 0:02:30]}  Nxd2 {[%clk 0:02:21]} 15. Qxd2 {[%clk 0:02:31]}  dxc4 {[%clk 0:02:21]} 16. Qxd8 {[%clk 0:02:31]}  Rfxd8 {[%clk 0:02:22]} 17. Bxc4 {[%clk 0:02:32]}  Kf7 {[%clk 0:02:17]} 18. Rfd1 {[%clk 0:02:11]}  a5 {[%clk 0:02:06]} 19. Bd4 {[%clk 0:01:56]}  Nd7 {[%clk 0:01:49]} 20. Bb5 {[%clk 0:01:45]}  Rac8 {[%clk 0:01:48]} 21. f3 {[%clk 0:01:40]}  Nb8 {[%clk 0:01:42]} 22. Kf2 {[%clk 0:01:25]}  Ba6 {[%clk 0:01:41]} 23. a4 {[%clk 0:01:26]}  Bxb5 {[%clk 0:01:38]} 24. axb5 {[%clk 0:01:27]}  Rd5 {[%clk 0:01:38]} 25. e4 {[%clk 0:00:52]}  fxe4 {[%clk 0:01:39]} 26. fxe4 {[%clk 0:00:52]}  Rxb5 {[%clk 0:01:38]} 27. Rd3 {[%clk 0:00:49]}  Rb4 {[%clk 0:01:30]} 28. Be3 {[%clk 0:00:43]}  Kg8 {[%clk 0:01:15]} 29. Kg1 {[%clk 0:00:34]}  c5 {[%clk 0:01:13]} 30. Rd6 {[%clk 0:00:29]}  Rxe4 {[%clk 0:01:10]} 31. Bf2 {[%clk 0:00:29]}  Nc6 {[%clk 0:01:04]} 32. Bg3 {[%clk 0:00:29]}  Nd4 {[%clk 0:01:02]} 33. Rf1 {[%clk 0:00:29]}  b5 {[%clk 0:00:58]} 34. Rd7 {[%clk 0:00:17]}  Nf5 {[%clk 0:00:56]} 35. Rb7 {[%clk 0:00:15]}  c4 {[%clk 0:00:54]} 36. bxc4 {[%clk 0:00:13]}  bxc4 {[%clk 0:00:55]} 37. Ra7 {[%clk 0:00:10]}  c3 {[%clk 0:00:54]} 38. Rxa5 {[%clk 0:00:11]}  c2 {[%clk 0:00:55]} 39. Raa1 {[%clk 0:00:11]}  Nd4 {[%clk 0:00:51]} 40. Kh1 {[%clk 0:00:09]}  Ne2 {[%clk 0:00:51]} 0-1


[Site "https://www.chess.com"]